Cogmind - Beta 15 @@@ ROGUE MODE // 2025.09.25 @ 23:28:21 Player: shapeshifter Result: Destroyed by P-70 Sage with Tesla Rifle Performance ------------- Evolutions (6) 3000 Regions Visited (21) 4200 Robots Destroyed (216) 1080 Value Destroyed (8071) 8071 Prototype IDs (218) 4360 Alien Tech Used (0) 0 Bonus (7167) 7167 TOTAL SCORE: 27878 Bonus ------- High Alert Combat Kills 194 Follower Combat Kills 1714 Entered DSFs 500 Network Hubs Disabled 200 Met Data Miner 300 Used Data Conduit 3000 Acquired ECA 300 Built Enhanced Grunts 300 A7 Reached Mainframe 300 Met R17 at Cetus 500 Friendly Fire -141 Cogmind --------- Core Integrity 0/1150 Matter 186/300 Energy 98/100 System Corruption 10% Temperature Cool (0) Movement Core (50) Location -4/Upper Caves Parts ------- > --- POWER (2) -------- (None) > --- PROPULSION (5) --- (None) > --- UTILITY (8) ------ Graphene Brace > --- WEAPON (4) ------- (None) > --- INVENTORY (5) ---- Light Antimatter Reactor Encrypted Comm Array Authchip [Propulsion] Remote Datajack Plasma Cutter Peak State ------------ > --- POWER ------------ Antimatter Reactor Micro Antimatter Reactor > --- PROPULSION ------- Myomer Leg Myomer Leg Myomer Leg Myomer Leg Myomer Leg > --- UTILITY ---------- Advanced Heat Sink Advanced Coolant Injector High-capacity Storage Unit Advanced Energy Well Centrium Medium Armor Plating Graphene Brace Focal Shield Improved Hacking Suite > --- WEAPON ----------- Variable Charge Gun Variable Charge Gun Variable Charge Gun Advanced Variable Charge Gun > --- INVENTORY -------- Myomer Leg Improved Antigrav System Power Amplifier Advanced Energy Well Advanced Energy Well Transport Network Coupler Graphene Brace Focal Shield Authchip [R/Combat] Authchip [R/Combat] Authchip [R/Combat] Authchip [Propulsion] Authchip [Propulsion] Variable Charge Gun Variable Charge Gun Variable Charge Gun Remote Datajack Plasma Cutter [Rating: 132] Favorites ----------- Power Light Angular Momentum Engine Engine Light Angular Momentum Engine Power Core Light Nuclear Core Reactor Antimatter Reactor Propulsion Light Treads Treads Light Treads Leg Enhanced Flexi-carbon Leg Wheel Armored Huge Wheel Hover Unit Improved Gyrokinetic Inverter Flight Unit VTOL Module Utility High-capacity Storage Unit Device Improved Sensor Array Storage High-capacity Storage Unit Processor Improved Signal Interpreter Hackware Hacking Suite Protection Hardened Medium Armor Plating Weapon Heavy Assault Rifle Energy Gun Variable Charge Gun Energy Cannon Neutron Cannon Ballistic Gun Heavy Assault Rifle Launcher Improved Grenade Launcher Special Weapon Remote Datajack Slashing Weapon Makeshift Axe Build | -11 -10 -10 -9 -9 -9 -8 -8 -7 -7 -7 -7 -6 -6 -6 -6 -6 -6 -5 -5 -4 -4 ------- Run | Yrd Mat Min Mat Min Exi Min Mat Fac Low Low Dat Pro Fac Ext Cet Arc Hub Fac DSF Fac Upp Slots Evolved 12 | . . . 2 . . . 2 2 . . . . 2 . . . . 2 . 2 . Power 1 | . . . . . . . . . . . . . . . . . . . . 1 . Propulsion 3 | . . . . . . . 1 . . . . . . . . . . 1 . 1 . Utility 6 | . . . 2 . . . 1 . . . . . 2 . . . . 1 . . . Weapon 2 | . . . . . . . . 2 . . . . . . . . . . . . . Parts Attached 190 | 7 6 5 23 . 4 1 24 18 2 2 14 4 4 19 9 10 2 2 10 21 3 Power 17 | 1 1 1 4 . . . 2 . . . 2 . . 1 1 1 . . 1 2 . Engine 7 | 1 1 1 1 . . . 2 . . . . . . 1 . . . . . . . Core 5 | . . . 3 . . . . . . . 1 . . . . . . . 1 . . Reactor 5 | . . . . . . . . . . . 1 . . . 1 1 . . . 2 . Propulsion 48 | 2 2 2 5 . 1 . 7 6 1 . 3 . . 1 1 1 . 1 4 11 . Treads 19 | 2 . . 4 . 1 . 6 6 . . . . . . . . . . . . . Leg 15 | . . 2 . . . . . . . . 3 . . 1 1 1 . 1 4 2 . Wheel 3 | . 2 . . . . . . . 1 . . . . . . . . . . . . Hover 6 | . . . . . . . 1 . . . . . . . . . . . . 5 . Flight 5 | . . . 1 . . . . . . . . . . . . . . . . 4 . Utility 76 | 2 1 1 7 . 2 1 11 7 . . 5 . 3 13 4 5 2 1 2 7 2 Device 34 | 1 . . 2 . 1 . 2 4 . . 4 . 1 8 2 3 . . 2 2 2 Storage 9 | 1 1 1 . . . . . . . . 1 . 1 2 1 . . . . 1 . Processor 6 | . . . . . 1 . 2 1 . . . . 1 . . . . . . 1 . Hackware 14 | . . . 4 . . . 3 . . . . . . 1 . 1 2 . . 3 . Protection 13 | . . . 1 . . 1 4 2 . . . . . 2 1 1 . 1 . . . Artifact . | . . . . . . . . . . . . . . . . . . . . . . Weapon 49 | 2 2 1 7 . 1 . 4 5 1 2 4 4 1 4 3 3 . . 3 1 1 Energy Gun 8 | . 1 . 2 . . . . . . . . . . . 1 1 . . 3 . . Energy Cannon 4 | . . . . . . . . 1 . . . . 1 1 1 . . . . . . Ballistic Gun 31 | 2 1 1 5 . 1 . 3 3 1 2 2 4 . 2 1 2 . . . 1 . Ballistic Cannon . | . . . . . . . . . . . . . . . . . . . . . . Launcher 2 | . . . . . . . 1 1 . . . . . . . . . . . . . Special Weapon 2 | . . . . . . . . . . . . . . 1 . . . . . . 1 Impact Weapon . | . . . . . . . . . . . . . . . . . . . . . . Slashing Weapon 2 | . . . . . . . . . . . 2 . . . . . . . . . . Piercing Weapon . | . . . . . . . . . . . . . . . . . . . . . . Special Melee Weapon . | . . . . . . . . . . . . . . . . . . . . . . Unidentified Prototypes 7 | . . . 3 . . . 1 1 . . 1 1 . . . . . . . . . Corrupted Parts 2 | . . . . . . . . . . . . . . . . 2 . . . . . System Corruption 18 | . . . . . . . . . . . . . . . . 18 . . . . . Parts Lost 55 | . 2 2 6 . . . 6 4 . . 2 . . 10 1 . 3 . 1 18 . Power 12 | . 1 1 2 . . . 1 . . . 1 . . 2 . . 1 . 1 2 . Propulsion 13 | . . . . . . . 1 1 . . 1 . . . . . . . . 10 . Utility 16 | . . . 1 . . . 4 1 . . . . . 6 1 . 1 . . 2 . Weapon 14 | . 1 1 3 . . . . 2 . . . . . 2 . . 1 . . 4 . Highest Loss Streak 8 | . 2 2 5 . . . 1 2 . . 2 . . 4 1 . 3 . 1 8 . To Critical Strikes 1 | . . . 1 . . . . . . . . . . . . . . . . . . Average Backups 17 | 4 7 8 18 19 19 17 16 16 16 16 11 20 18 18 18 19 18 16 19 17 4 Power 1 | 1 . . 1 1 1 1 . 1 1 1 . 1 1 1 1 1 . . . . 1 Propulsion 1 | 2 3 1 4 1 . . . . . . . 1 1 2 3 3 3 2 2 2 . Utility 9 | . 1 4 9 12 12 11 9 6 7 8 6 13 10 9 7 10 11 12 11 10 1 Weapon 4 | . 1 1 2 5 5 5 5 6 5 5 2 2 3 3 4 2 1 . 3 2 . Tool/Special . | . . . . . . . . . . . . . . . . . . . . . . Unused Backups 74 | . . . 12 2 9 1 10 7 1 4 3 1 . . 4 3 1 . 3 11 2 Power 5 | . . . . 1 . 1 . . . . . . . . 2 . . . . . 1 Propulsion 10 | . . . 8 . . . . . . . . . . . . . . . 2 . . Utility 37 | . . . 2 1 8 . 6 4 . 2 3 1 . . . 1 1 . 1 6 1 Weapon 22 | . . . 2 . 1 . 4 3 1 2 . . . . 2 2 . . . 5 . Tool/Special . | . . . . . . . . . . . . . . . . . . . . . . Average Slot Usage (%) 93 | . 99 93 95 100 100 100 98 92 92 84 65 80 99 98 92 99 98 82 94 82 4 Engine 6 | . 14 12 1 11 11 11 8 7 7 7 1 . 5 3 4 . . . . . . Reactor 1 | . . . . . . . . . . . 3 7 . 2 1 6 5 5 1 6 . Treads 12 | . 16 16 15 22 22 22 26 22 19 . . . . . . . . . . . . Leg 7 | . . 9 6 . . . . . . . 11 23 20 20 20 20 20 21 23 19 . Device 13 | . 14 14 5 . 10 11 6 12 15 15 13 15 19 22 25 25 20 11 12 16 4 Storage 10 | . 14 14 13 11 11 11 9 7 7 7 7 7 12 11 13 13 7 5 8 10 . Processor 4 | . . . . . 8 11 7 7 7 7 7 7 6 4 . . . . . . . Hackware 7 | . . . 20 33 14 5 7 . . . . . . . . . 10 11 11 6 . Protection 5 | . . . 1 . . 5 13 7 7 7 4 7 6 5 6 6 7 11 11 1 . Energy Gun 1 | . . . . . . . . . . . . . . . 2 6 5 2 13 14 . Energy Cannon 1 | . . . . . . . . . . . . . . 6 13 9 6 5 3 . . Ballistic Gun 18 | . 27 25 21 22 22 22 17 24 24 29 8 10 26 17 3 9 12 3 1 . . Peak Build Rating 132 | 7 7 8 25 24 28 28 38 43 52 53 94 94 94 99 109 109 108 108 117 132 13 Average Rating 52 | 5 6 7 19 24 23 27 34 38 44 51 50 90 91 92 95 105 100 102 109 106 8 On Entrance 53 | . 7 7 8 24 24 28 28 34 42 52 53 94 82 93 93 109 108 75 108 112 2 Naked Turns 18 | . . . . . . . . . . . . . . . . . . . . 6 12 Heaviest Build 105 | 13 48 47 55 54 56 58 69 73 76 79 84 82 82 105 103 104 104 98 103 98 1 Greatest Support 125 | 40 40 40 40 40 40 40 62 60 60 28 84 84 84 84 84 84 84 100 100 125 3 Greatest Overweight (x) 10 | . 1 1 2 1 1 1 1 3 2 2 10 . . 1 1 1 1 . 1 1 . Average Overweight (x) . | . . . 1 1 1 1 . 1 1 2 . . . . . 1 . . . . . Largest Inventory Capacity 20 | 8 20 20 20 20 20 20 20 20 20 20 20 20 20 20 20 20 20 20 20 20 5 Average Capacity 19 | 7 14 15 19 20 20 20 20 20 20 20 15 20 20 20 20 20 20 20 20 18 5 Most Carried 20 | 7 8 10 20 20 20 20 20 20 20 20 20 20 20 20 20 20 20 20 20 20 5 Average Carried 18 | 4 7 8 18 19 19 20 19 19 19 19 13 20 18 18 18 19 18 15 19 17 4 Final Capacity 20 | 8 20 8 20 20 20 20 20 20 20 20 20 20 20 20 20 20 20 20 20 5 5 Final Carried 20 | 7 7 8 20 20 20 20 19 20 20 20 20 20 20 17 20 18 20 15 20 5 5 Class Distribution -------------------- 27% | Scavenger-Tank 19% | Scavenger-Mutant 18% | Mutant 17% | Tank 14% | Hacker-Mutant Dominant Class ---------------- Mutant | -10/Materials Mutant | -10/Mines Hacker-Mutant | -9/Materials Hacker-Mutant | -9/Mines Scavenger-Mutant | -9/Exiles Scavenger-Mutant | -8/Mines Mutant | -8/Materials Tank | -7/Factory Tank | -7/Lower Caves Tank | -7/Lower Caves Gunner | -7/Data Miner Scavenger-Tank | -6/Proximity Caves Scavenger-Tank | -6/Factory Scavenger-Tank | -6/Extension Scavenger-Tank | -6/Cetus Scavenger-Tank | -6/Archives Scavenger-Tank | -6/Hub_04(d) Scavenger-Tank | -5/Factory Scavenger-Tank | -5/DSF Scavenger-Tank | -4/Factory Mutant | -4/Upper Caves Resources | -11 -10 -10 -9 -9 -9 -8 -8 -7 -7 -7 -7 -6 -6 -6 -6 -6 -6 -5 -5 -4 -4 ----------- Run | Yrd Mat Min Mat Min Exi Min Mat Fac Low Low Dat Pro Fac Ext Cet Arc Hub Fac DSF Fac Upp Matter Collected 7678 | 300 344 296 669 384 94 90 1173 811 67 383 378 329 187 1197 206 265 78 . 245 182 . Remotely 73 | . . . 73 . . . . . . . . . . . . . . . . . . Salvage Created 9698 | 105 345 52 1006 96 195 96 1586 1167 198 193 378 220 277 2033 79 261 234 . 627 550 . Parts 523 | 6 22 . 80 9 6 6 84 66 7 12 22 8 9 105 2 21 14 . 25 19 . Haulers Intercepted 6 | . . . 3 . . . 1 . . . . . 1 . . . . . . 1 . Recyclers Shooed 9 | . . . 1 2 . . 1 3 . . . . . 1 . . . . . 1 . Parts Field Recycled . | . . . . . . . . . . . . . . . . . . . . . . Retrieved Matter . | . . . . . . . . . . . . . . . . . . . . . . Parts Self-Destructed 20 | . . . . . . . . . . 12 . 8 . . . . . . . . . Prevented . | . . . . . . . . . . . . . . . . . . . . . . Kills | -11 -10 -10 -9 -9 -9 -8 -8 -7 -7 -7 -7 -6 -6 -6 -6 -6 -6 -5 -5 -4 -4 ------- Run | Yrd Mat Min Mat Min Exi Min Mat Fac Low Low Dat Pro Fac Ext Cet Arc Hub Fac DSF Fac Upp Combat Hostiles Destroyed 167 | . 8 7 19 6 . 3 40 15 . 4 4 6 3 28 1 . 4 . 10 9 . Guns 142 | . 8 7 19 6 . 3 35 14 . 4 4 6 3 16 . . 3 . 6 8 . Cannons 18 | . . . . . . . . . . . . . . 12 1 . 1 . 4 . . AOE 6 | . . . . . . . 5 1 . . . . . . . . . . . . . Classes Destroyed 20 | 2 4 1 4 . . . 2 1 . 1 . . . 3 . . . . 2 . . Worker 8 | . 1 . 2 . . . 2 1 . . . . . 1 . . . . . 1 . Builder 6 | . . . 2 . . . 1 1 . . . . . . . . 1 . . 1 . Tunneler 2 | 1 1 . . . . . . . . . . . . . . . . . . . . Hauler 6 | . . . 3 . . . 1 . . . . . 1 . . . . . . 1 . Recycler 8 | 1 . . . . . . . 4 . . . . . 3 . . . . . . . Minesweeper 1 | . . . . . . . . . . 1 . . . . . . . . . . . Mechanic 1 | . . . 1 . . . . . . . . . . . . . . . . . . Operator 13 | . . . . . . . 2 1 . . . . . 2 . 8 . . . . . Watcher 10 | . 1 . 4 . . . 2 . . . . . . 1 1 . . . . 1 . Swarmer 46 | . 2 . 6 6 . . 8 . . 4 . 4 . 7 . . . . 5 4 . Grunt 67 | . 6 . 8 . . 3 23 9 . . . 2 3 9 . . 4 . . . . Brawler 3 | . . . . . . . 2 1 . . . . . . . . . . . . . Sentry 24 | . . . 5 . . . 7 2 . . . . . 8 . . . . . 2 . Specialist 2 | . . . . . . . . . . . . . . . . . . . 2 . . Hunter 4 | . . . . . . . . . . . . . . 2 . . . . 2 . . Programmer 6 | . . . . . . . . 3 . . . . . . . . . . . 3 . Heavy 1 | . . . . . . . . . . . . . . . . . . . 1 . . Behemoth 2 | . . . . . . . . . . . . . . 2 . . . . . . . Cetus Guard 1 | . . . . . . . . . . . . . . . 1 . . . . . . Enhanced Grunt 4 | . . . . . . . . . . . 4 . . . . . . . . . . Assembled 7 | . . 7 . . . . . . . . . . . . . . . . . . . Butcher 1 | . . . . . . . . . . . . . . 1 . . . . . . . Best Kill Streak 8 | 1 6 7 7 3 . 3 6 7 . 3 4 4 4 8 1 2 4 . 5 4 . Combat Bots Only 7 | . 4 7 6 3 . 3 6 4 . 3 4 4 3 7 1 . 3 . 5 4 . Max Kills in Single Turn 3 | 1 1 1 2 1 . 1 2 3 . 1 1 2 1 2 1 1 2 . 2 1 . Gunslinging 1 | . . . . . . . 1 1 . . . . . . . . . . . . . Exploded 2 | . . . . . . . 2 1 . . . . . . . . . . . . . Melee . | . . . . . . . . . . . . . . . . . . . . . . Uniques/NPCs Destroyed . | . . . . . . . . . . . . . . . . . . . . . . Combat | -11 -10 -10 -9 -9 -9 -8 -8 -7 -7 -7 -7 -6 -6 -6 -6 -6 -6 -5 -5 -4 -4 -------- Run | Yrd Mat Min Mat Min Exi Min Mat Fac Low Low Dat Pro Fac Ext Cet Arc Hub Fac DSF Fac Upp Hostile Shots Fired 1497 | . 61 33 141 17 . 13 180 148 . 26 23 15 5 362 30 7 23 . 126 281 6 Missed 494 | . 13 10 48 4 . 2 53 45 . 9 6 7 1 127 9 2 5 . 33 120 . Hits 1003 | . 48 23 93 13 . 11 127 103 . 17 17 8 4 235 21 5 18 . 93 161 6 Melee 13 | . . 5 . . . . 2 3 . 3 . . . . . . . . . . . Projectile 990 | . 48 18 93 13 . 11 125 100 . 14 17 8 4 235 21 5 18 . 93 161 6 Critical Strikes 33 | . . 2 3 . . . 6 2 . . . 1 1 4 3 . 1 . 1 9 . Actively Blocked 9 | . . . . . . . . . . . . . . . . . . . . 9 . Part Disruptions 3 | . . . . . . . . . . 2 1 . . . . . . . . . . Damage Taken 14612 | . 542 388 1162 108 . 130 1634 1037 . 211 789 110 25 2199 557 85 650 . 1658 3207 120 Core 2605 | . 156 54 347 19 . 13 78 82 . . 120 14 . 242 126 . 40 . 160 1073 81 Absorbed by Shields 1196 | . . . . . . 51 240 262 . 82 . . 27 517 17 . . . . . . Ignored by Resistances 1292 | . . . . . . . . . . . . 36 25 608 91 26 . . 465 41 . Core Remaining (%) 58 | 100 . 16 . . . 5 85 . . . . 69 . . . . 52 . 84 . . Volleys Fired 683 | 5 42 25 95 11 9 10 112 62 5 19 18 13 13 113 16 40 11 . 26 38 . Largest 4 | 2 2 2 2 2 2 2 2 4 3 4 1 1 4 4 2 4 4 . 3 4 . Hottest 350 | 40 70 40 76 46 46 47 47 94 76 114 60 60 90 180 180 350 330 . 245 305 . Shots Fired 1571 | 10 84 42 185 22 18 20 218 184 15 72 17 13 49 323 29 73 35 . 72 90 . Gun 1438 | 10 84 42 185 22 18 20 212 183 15 72 17 13 48 261 16 57 26 . 47 90 . Cannon 108 | . . . . . . . . 1 . . . . 1 43 13 16 9 . 25 . . Launcher 6 | . . . . . . . 6 . . . . . . . . . . . . . . Special 19 | . . . . . . . . . . . . . . 19 . . . . . . . Kinetic 1271 | 10 79 42 171 22 18 20 212 183 15 72 17 13 48 261 16 40 18 . 4 10 . Thermal 274 | . 5 . 14 . . . . . . . . . 1 43 13 33 17 . 68 80 . Explosive 6 | . . . . . . . 6 . . . . . . . . . . . . . . Electromagnetic 1 | . . . . . . . . 1 . . . . . . . . . . . . . Robot Hit Streak 18 | 7 6 7 14 7 7 13 16 9 8 4 9 7 8 18 6 6 10 . 7 15 . Robot Miss Streak 8 | 2 5 3 5 2 2 2 4 6 1 6 3 4 2 6 8 3 2 . 3 4 . Penetration Max 1 | . . . . . . . . . 1 1 . . . . 1 1 . . . . . Secondary Targets 15 | . . . 4 1 . 1 3 2 . 1 . . . 2 . . . . . 1 . Max Gunslinging Chain 1 | . . . 1 1 . 1 1 1 . 1 . . . 1 . . . . . 1 . Shots Hit Robots 985 | 7 48 25 129 13 10 16 158 102 7 28 19 10 33 198 14 41 17 . 45 65 . Core Hits 477 | 3 19 16 62 7 5 10 107 46 7 9 23 8 10 66 6 18 14 . 22 19 . Critical Kills 2 | . . . . . . . 1 1 . . . . . . . . . . . . . Critical Parts Destroyed 2 | . . . 1 . . . . 1 . . . . . . . . . . . . . Critical Strikes 10 | . 1 . 4 . . . 2 2 . . . . . . 1 . . . . . . Burn 3 | . 1 . 2 . . . . . . . . . . . . . . . . . . Destroy 7 | . . . 2 . . . 2 2 . . . . . . 1 . . . . . . Melee Attacks 2 | . . . . . . . . . . . 2 . . . . . . . . . . Impact . | . . . . . . . . . . . . . . . . . . . . . . Slashing 2 | . . . . . . . . . . . 2 . . . . . . . . . . Piercing . | . . . . . . . . . . . . . . . . . . . . . . Sneak Attacks 2 | . . . . . . . . . . . 2 . . . . . . . . . . Combat Hostiles . | . . . . . . . . . . . . . . . . . . . . . . Follow-up Attacks 1 | . . . . . . . . . . . 1 . . . . . . . . . . Damage Inflicted 23262 | 88 604 267 1376 222 165 319 3270 1958 234 569 1347 359 728 5060 791 1434 706 . 1843 1922 . Guns 18239 | 88 604 267 1190 216 165 319 2637 1745 234 569 1152 359 728 3533 265 1024 483 . 999 1662 . Cannons 3207 | . . . . . . . . . . . . . . 1389 526 410 193 . 689 . . Explosions 1586 | . . . 186 . . . 633 213 . . . . . 138 . . 30 . 155 231 . Melee 195 | . . . . . . . . . . . 195 . . . . . . . . . . Ramming 35 | . . . . 6 . . . . . . . . . . . . . . . 29 . Kinetic 14916 | 88 580 267 1032 216 165 319 2637 1745 234 569 1152 359 728 3533 265 524 271 . 68 164 . Thermal 7364 | . 24 . 255 . . . . 213 . . . . . 1527 526 910 405 . 1775 1729 . Explosive 722 | . . . 89 . . . 633 . . . . . . . . . . . . . . Electromagnetic 30 | . . . . . . . . . . . . . . . . . 30 . . . . Impact . | . . . . . . . . . . . . . . . . . . . . . . Slashing 195 | . . . . . . . . . . . 195 . . . . . . . . . . Piercing . | . . . . . . . . . . . . . . . . . . . . . . Highest Corruption 13 | . . . . . . . 3 4 4 4 4 4 . 1 1 13 1 . . 9 10 Average Corruption 3 | . . . . . . . 3 3 4 4 4 4 . 1 1 5 1 . . 7 9 Corruption Purged 19 | . . . . . . . . . . . . . . . . 19 . . . . . Corruption Blocked . | . . . . . . . . . . . . . . . . . . . . . . Effects 145 | . . . . . . . 21 12 14 17 14 8 . 15 6 14 . . . 22 2 Message Errors 43 | . . . . . . . 8 6 4 2 4 3 . 3 1 3 . . . 8 1 Matter Fused 35 | . . . . . . . 7 3 7 2 6 2 . 2 2 1 . . . 3 . Heat Flow Errors 17 | . . . . . . . . . 2 5 . 1 . 3 1 3 . . . 1 1 Energy Discharges 17 | . . . . . . . 2 2 1 2 2 2 . 2 . . . . . 4 . Parts Rejected 4 | . . . . . . . . . . 1 . . . 2 . . . . . 1 . Parts Fused 2 | . . . . . . . 1 . . . . . . . . 1 . . . . . Data Loss (minor) 10 | . . . . . . . . . . 4 . . . 1 1 2 . . . 2 . Data Loss (major) 4 | . . . . . . . 1 1 . . 1 . . . . 1 . . . . . Misfires 7 | . . . . . . . 2 . . 1 . . . . 1 2 . . . 1 . Weapon Failures 6 | . . . . . . . . . . . 1 . . 2 . 1 . . . 2 . Overload Shots 6 | . . . . . . . . . . . . . . . . 2 1 . . 3 . Overflow Damage 312 | . . . 67 . . . . . . . 26 . . 41 . 46 14 . 7 111 . Projectiles 79 | . . . . . . . . . . . . . . 25 . 46 1 . 7 . . Explosions 207 | . . . 67 . . . . . . . . . . 16 . . 13 . . 111 . Melee 26 | . . . . . . . . . . . 26 . . . . . . . . . . Knockbacks 1 | . . . . . . . . . . . . . . . . . . . . 1 . Impact 1 | . . . . . . . . . . . . . . . . . . . . 1 . Kinetic . | . . . . . . . . . . . . . . . . . . . . . . Secondary . | . . . . . . . . . . . . . . . . . . . . . . Self-Inflicted Damage 529 | . . . 100 . . . 35 122 . . . . . 36 . . 183 . . 53 . Shots 8 | . . . 1 . . . 1 2 . . . . . 1 . . 2 . . 1 . Rammed 2 | . . . . 1 . . . . . . . . . . . . . . . 1 . Targets Rammed 2 | . . . . 1 . . . . . . . . . . . . . . . 1 . Kicked . | . . . . . . . . . . . . . . . . . . . . . . Crushed . | . . . . . . . . . . . . . . . . . . . . . . Highest Temperature 342 | . 39 . 181 . . . 187 202 225 242 313 188 238 325 174 193 198 . 192 342 228 Average Temperature 72 | . 11 . 30 . . . 42 56 63 71 138 90 83 97 54 71 100 . 56 121 120 Received Heat Transfer 3385 | . 219 . 384 . . 66 846 289 . . . 72 8 791 71 9 153 . . 477 . Effects 1 | . . . . . . . . . . . . . . 1 . . . . . . . Interference 1 | . . . . . . . . . . . . . . 1 . . . . . . . Siege Activations . | . . . . . . . . . . . . . . . . . . . . . . Martial Activations . | . . . . . . . . . . . . . . . . . . . . . . Shielding Activations . | . . . . . . . . . . . . . . . . . . . . . . Robots Disrupted . | . . . . . . . . . . . . . . . . . . . . . . Combat Hostiles . | . . . . . . . . . . . . . . . . . . . . . . Robots Corrupted . | . . . . . . . . . . . . . . . . . . . . . . Combat Hostiles . | . . . . . . . . . . . . . . . . . . . . . . Parts Fried 1 | . . . . . . . . . . . . . . . . 1 . . . . . Impact Corruptions . | . . . . . . . . . . . . . . . . . . . . . . Robots Melted 2 | . . . . . . . . . . . . . . . . . . . 1 1 . Combat Hostiles 1 | . . . . . . . . . . . . . . . . . . . . 1 . Parts Melted 11 | . . . 4 . . . . . . . . . . 1 . 1 . . 3 2 . Heat Transferred 5436 | . 148 . 642 . . . . 150 . . . . . 100 . 507 222 . 1421 2246 . Parts Sabotaged . | . . . . . . . . . . . . . . . . . . . . . . Parts Stolen 1 | . . . . . . . . . . 1 . . . . . . . . . . . Parts Stripped . | . . . . . . . . . . . . . . . . . . . . . . Power Chain Reactions 5 | . . . . . . . . . . . . . . 2 . . 1 . 2 . . Alert | -11 -10 -10 -9 -9 -9 -8 -8 -7 -7 -7 -7 -6 -6 -6 -6 -6 -6 -5 -5 -4 -4 ------- Run | Yrd Mat Min Mat Min Exi Min Mat Fac Low Low Dat Pro Fac Ext Cet Arc Hub Fac DSF Fac Upp Maximum Alert Level 3 | . . . 1 . . . 2 1 . . . . . . . . 3 2 2 2 . Low Security (%) 67 | 100 100 100 46 100 . 100 39 53 . . . . 100 100 100 100 56 . . . . Level 1 26 | . . . 53 . . . 47 46 . . . . . . . . 26 . 42 77 . Level 2 5 | . . . . . . . 12 . . . . . . . . . 8 100 57 22 . Level 3 . | . . . . . . . . . . . . . . . . . 8 . . . . Level 4 . | . . . . . . . . . . . . . . . . . . . . . . Level 5 . | . . . . . . . . . . . . . . . . . . . . . . High Security . | . . . . . . . . . . . . . . . . . . . . . . Max Security . | . . . . . . . . . . . . . . . . . . . . . . Sterilizations 1 | . . . . . . . . . . . . . . . . . . . 1 . . Peak Influence 1020 | 5 102 27 280 167 . 60 620 280 . . . . 70 197 165 164 1020 461 571 544 . Initial 461 | . . 27 . 97 . . . 280 . . . . . . 74 29 . 461 315 299 . Average 145 | . 24 4 174 41 . 7 262 153 . . . . 20 79 74 58 228 457 450 344 . Influence Increases 7162 | 10 229 . 720 222 25 70 1215 529 . 115 . 130 82 875 334 310 1159 . 266 871 . Destroy 0b10 Robot/C 3780 | . 160 . 380 180 . 60 800 300 . 80 . 120 60 640 160 80 300 . 200 260 . Destroy 0b10 Robot/NC 325 | 10 15 . 60 . 25 . 40 35 . 10 . . 5 35 10 40 10 . 10 20 . Destroy Leader 700 | . 32 . 114 30 . 10 176 80 . 10 . 10 12 62 . . 80 . 30 54 . Allied During Kill 587 | . . . . 12 . . . . . . . . . 25 132 120 262 . . 36 . Successful Hack 141 | . 19 . 12 . . . 11 . . . . . 4 43 9 . 7 . . 36 . Select Force Hacks 30 | . . . . . . . 30 . . . . . . . . . . . . . . Disable Machine 555 | . . . 60 . . . 45 45 . . . . . 45 . 60 240 . . 60 . Anti-Garrison Action 150 | . . . . . . . . . . . . . . . . . 150 . . . . Destroy Structure 489 | . 3 . 64 . . . 38 39 . . . . 1 25 23 10 110 . 26 150 . Lose Combat Pursuer 405 | . . . 30 . . . 75 30 . 15 . . . . . . . . . 255 . Influence Decreases 6906 | 10 159 70 468 459 40 70 598 895 251 115 . 130 80 743 395 383 217 491 146 972 214 Entered New Map 1813 | . . 43 . 155 15 . . 337 94 . . . . 2 60 44 . 481 136 272 174 Time Decay 4027 | 10 139 27 408 284 25 70 538 518 157 115 . 130 80 447 243 299 107 10 . 380 40 Lost Part 504 | . 20 . 60 . . . 60 40 . . . . . 94 10 . 30 . 10 180 . Lost Ally 562 | . . . . 20 . . . . . . . . . 200 82 40 80 . . 140 . Squads Dispatched 36 | . . . 5 . . . 5 6 . . . . 1 2 . . 7 . 2 8 . Investigation 8 | . . . 3 . . . 2 . . . . . . . . . 1 . . 2 . Extermination 5 | . . . . . . . . 2 . . . . 1 . . . . . . 2 . Reinforcement 19 | . . . 2 . . . 3 4 . . . . . 2 . . 2 . 2 4 . Assault 2 | . . . . . . . . . . . . . . . . . 2 . . . . Garrison 2 | . . . . . . . . . . . . . . . . . 2 . . . . Intercept . | . . . . . . . . . . . . . . . . . . . . . . Searches Triggered . | . . . . . . . . . . . . . . . . . . . . . . Construction Impeded 2 | . . . . . . . 1 . . . . . . . . . 1 . . . . Haulers Reinforced 3 | . . . . . . . . 1 . . . . . . . . . . . 2 . Active Scanning Responses . | . . . . . . . . . . . . . . . . . . . . . . Cargo Convoy Interrupts . | . . . . . . . . . . . . . . . . . . . . . . Stealth | -11 -10 -10 -9 -9 -9 -8 -8 -7 -7 -7 -7 -6 -6 -6 -6 -6 -6 -5 -5 -4 -4 --------- Run | Yrd Mat Min Mat Min Exi Min Mat Fac Low Low Dat Pro Fac Ext Cet Arc Hub Fac DSF Fac Upp Distress Signals 15 | . 1 . 2 . . . 1 . . . . . . 2 2 . 2 . . 5 . Communications Jammed . | . . . . . . . . . . . . . . . . . . . . . . Distress Signals . | . . . . . . . . . . . . . . . . . . . . . . Times Spotted 318 | . 18 18 32 8 . 3 48 18 . 6 4 6 3 37 10 28 11 . 10 55 3 Peak Tracking Total 17 | . 5 17 5 3 . 3 7 5 . 4 4 4 3 5 5 2 5 . 5 15 3 Tactical Retreats 16 | . . 4 1 . . . 3 2 . 1 . . . . . . . . . 5 . Traps | -11 -10 -10 -9 -9 -9 -8 -8 -7 -7 -7 -7 -6 -6 -6 -6 -6 -6 -5 -5 -4 -4 ------- Run | Yrd Mat Min Mat Min Exi Min Mat Fac Low Low Dat Pro Fac Ext Cet Arc Hub Fac DSF Fac Upp Traps Triggered 9 | . . . 1 . . . 1 . . 1 . . . 2 . . 2 . . 2 . Indirectly . | . . . . . . . . . . . . . . . . . . . . . . Trap Hack Attempts . | . . . . . . . . . . . . . . . . . . . . . . Triggered . | . . . . . . . . . . . . . . . . . . . . . . Disarmed . | . . . . . . . . . . . . . . . . . . . . . . Reprogrammed . | . . . . . . . . . . . . . . . . . . . . . . Reused . | . . . . . . . . . . . . . . . . . . . . . . Traps Extracted . | . . . . . . . . . . . . . . . . . . . . . . Installed . | . . . . . . . . . . . . . . . . . . . . . . Triggered . | . . . . . . . . . . . . . . . . . . . . . . Machines | -11 -10 -10 -9 -9 -9 -8 -8 -7 -7 -7 -7 -6 -6 -6 -6 -6 -6 -5 -5 -4 -4 ---------- Run | Yrd Mat Min Mat Min Exi Min Mat Fac Low Low Dat Pro Fac Ext Cet Arc Hub Fac DSF Fac Upp Machines Disabled 39 | . . . 4 . . . 3 3 . . . . . 3 1 4 17 . . 4 . Max in Single Turn 16 | . . . 4 . . . 1 2 . . . . . 1 . 1 16 . . 2 . Garrison Access 1 | . . . . . . . . . . . . . . . . . 1 . . . . Network Hub 1 | . . . . . . . . . . . . . . . . . 1 . . . . Machines Repaired . | . . . . . . . . . . . . . . . . . . . . . . Machines Dismantled . | . . . . . . . . . . . . . . . . . . . . . . Machines Sabotaged . | . . . . . . . . . . . . . . . . . . . . . . Overloaded Fab Kills . | . . . . . . . . . . . . . . . . . . . . . . Hacking | -11 -10 -10 -9 -9 -9 -8 -8 -7 -7 -7 -7 -6 -6 -6 -6 -6 -6 -5 -5 -4 -4 --------- Run | Yrd Mat Min Mat Min Exi Min Mat Fac Low Low Dat Pro Fac Ext Cet Arc Hub Fac DSF Fac Upp Machines Accessed 42 | . 2 . 3 . 1 . 8 1 1 2 3 . 1 9 1 . 2 1 . 6 1 Terminals 25 | . 1 . 3 . . . 5 . . 1 . . 1 9 1 . 1 1 . 2 . Fabricators 3 | . . . . . . . . . . . . . . . . . . . . 3 . Repair Stations . | . . . . . . . . . . . . . . . . . . . . . . Recycling Units 5 | . 1 . . . . . 2 1 . . . . . . . . . . . 1 . Scanalyzers 1 | . . . . . . . 1 . . . . . . . . . . . . . . Garrison Access 1 | . . . . . . . . . . . . . . . . . 1 . . . . Total Hacks 139 | . 7 . 15 . 1 . 21 2 1 2 24 . 2 33 2 . 6 1 . 21 1 Successful 84 | . 6 . 8 . 1 . 13 . 1 2 24 . 1 11 1 . 2 1 . 12 1 Failed 55 | . 1 . 7 . . . 8 2 . . . . 1 22 1 . 4 . . 9 . Catastrophic 9 | . . . 2 . . . 1 1 . . . . . 3 . . . . . 2 . Database Lockouts . | . . . . . . . . . . . . . . . . . . . . . . Manual 48 | . 4 . 12 . 1 . 13 . . . . . . 12 1 . 1 . . 4 . Terminals 84 | . 6 . 15 . . . 16 . . 1 . . 2 33 2 . 3 1 . 5 . Fabricators 15 | . . . . . . . . . . . . . . . . . . . . 15 . Repair Stations . | . . . . . . . . . . . . . . . . . . . . . . Recycling Units 8 | . 1 . . . . . 4 2 . . . . . . . . . . . 1 . Scanalyzers 1 | . . . . . . . 1 . . . . . . . . . . . . . . Garrison Access 3 | . . . . . . . . . . . . . . . . . 3 . . . . Terminal Hacks 50 | . 3 . 4 . 1 . 2 . 1 2 24 . 1 6 1 . 2 1 . 1 1 Record 9 | . . . . . 1 . . . . 1 6 . . . . . . . . . 1 Part Schematic 9 | . . . . . . . . . . . 8 . . 1 . . . . . . . Robot Schematic 7 | . . . . . . . . . . . 7 . . . . . . . . . . Prototype ID Bank 3 | . . . . . . . . . . . 3 . . . . . . . . . . Open Door 6 | . . . . . . . . . 1 1 . . 1 2 1 . . . . . . Open DSF 1 | . . . . . . . . . . . . . . . . . . 1 . . . Level Access Points 1 | . . . . . . . . . . . . . . . . . 1 . . . . Branch Access Points 4 | . 1 . 1 . . . 1 . . . . . . . . . . . . 1 . Alert Level 1 | . . . . . . . . . . . . . . . . . 1 . . . . Recall Reinforcements 1 | . . . . . . . . . . . . . . 1 . . . . . . . Registered Components 2 | . . . 1 . . . . . . . . . . 1 . . . . . . . Registered Prototypes 1 | . . . . . . . . . . . . . . 1 . . . . . . . Zone Layout 5 | . 2 . 2 . . . 1 . . . . . . . . . . . . . . Fabricator Hacks 10 | . . . . . . . . . . . . . . . . . . . . 10 . Load Schematic 5 | . . . . . . . . . . . . . . . . . . . . 5 . Build 5 | . . . . . . . . . . . . . . . . . . . . 5 . Repair Station Hacks . | . . . . . . . . . . . . . . . . . . . . . . Recycling Unit Hacks 4 | . 1 . . . . . 2 . . . . . . . . . . . . 1 . Retrieve Components 4 | . 1 . . . . . 2 . . . . . . . . . . . . 1 . Scanalyzer . | . . . . . . . . . . . . . . . . . . . . . . Garrison Access Hacks . | . . . . . . . . . . . . . . . . . . . . . . Unauthorized Hacks 20 | . 2 . 4 . . . 9 . . . . . . 5 . . . . . . . Terminals 19 | . 2 . 4 . . . 8 . . . . . . 5 . . . . . . . Botnet 8 | . 1 . 2 . . . 3 . . . . . . 2 . . . . . . . Skim 11 | . 1 . 2 . . . 5 . . . . . . 3 . . . . . . . Fabricators . | . . . . . . . . . . . . . . . . . . . . . . Repair Stations . | . . . . . . . . . . . . . . . . . . . . . . Recycling Units . | . . . . . . . . . . . . . . . . . . . . . . Scanalyzers 1 | . . . . . . . 1 . . . . . . . . . . . . . . Extract 1 | . . . . . . . 1 . . . . . . . . . . . . . . Garrison Access . | . . . . . . . . . . . . . . . . . . . . . . Data Cores Recovered . | . . . . . . . . . . . . . . . . . . . . . . Used . | . . . . . . . . . . . . . . . . . . . . . . Hacking Detections 27 | . 1 . 3 . . . 5 1 . . . . 1 8 1 . 1 . . 6 . Full Trace Events 5 | . . . 2 . . . . . . . . . . . . . 1 . . 2 . Feedback Events 1 | . . . . . . . . . . . . . . . . . . . . 1 . Corruption 1 | . . . . . . . . . . . . . . . . . . . . 1 . Feedback Blocked . | . . . . . . . . . . . . . . . . . . . . . . Robot Schematics Acquired 7 | . . . . . . . . . . . 7 . . . . . . . . . . Robots Built 9 | . . . . . . . . . . . . . . . . . . . . 9 . Authchips 3 | . . . . . . . . . . . . . . . . . . . . 3 . Time 328 | . . . . . . . . . . . . . . . . . . . . 328 . Total Robot Build Rating 54 | . . . . . . . . . . . . . . . . . . . . 54 . Part Schematics Acquired 10 | . . . . . . . 1 . . . 8 . . 1 . . . . . . . Parts Built 2 | . . . . . . . . . . . . . . . . . . . . 2 . Authchips . | . . . . . . . . . . . . . . . . . . . . . . Time 58 | . . . . . . . . . . . . . . . . . . . . 58 . Total Part Build Rating 14 | . . . . . . . . . . . . . . . . . . . . 14 . Parts Repaired . | . . . . . . . . . . . . . . . . . . . . . . Time . | . . . . . . . . . . . . . . . . . . . . . . Parts Recycled . | . . . . . . . . . . . . . . . . . . . . . . Recycled Matter . | . . . . . . . . . . . . . . . . . . . . . . Retrieved Matter . | . . . . . . . . . . . . . . . . . . . . . . Retrieved Components 13 | . 1 . . . . . 10 . . . . . . . . . . . . 2 . Parts Scanalyzed . | . . . . . . . . . . . . . . . . . . . . . . Part Schematics Acquired . | . . . . . . . . . . . . . . . . . . . . . . Parts Damaged . | . . . . . . . . . . . . . . . . . . . . . . Bothacking | -11 -10 -10 -9 -9 -9 -8 -8 -7 -7 -7 -7 -6 -6 -6 -6 -6 -6 -5 -5 -4 -4 ------------ Run | Yrd Mat Min Mat Min Exi Min Mat Fac Low Low Dat Pro Fac Ext Cet Arc Hub Fac DSF Fac Upp Used RIF Installer . | . . . . . . . . . . . . . . . . . . . . . . Robots Hacked . | . . . . . . . . . . . . . . . . . . . . . . Non-combat . | . . . . . . . . . . . . . . . . . . . . . . Combat . | . . . . . . . . . . . . . . . . . . . . . . Robot Hacks Applied . | . . . . . . . . . . . . . . . . . . . . . . Relay Couplers Released 1 | . . . . . . . . . . . . . . . . . 1 . . . . Machine Destruction 1 | . . . . . . . . . . . . . . . . . 1 . . . . Fabnet Peak Effective % . | . . . . . . . . . . . . . . . . . . . . . . Robots Rewired 18 | . . . . . 3 . . . . . . . . 15 . . . . . . . Allies Hacked . | . . . . . . . . . . . . . . . . . . . . . . Hacks Repelled . | . . . . . . . . . . . . . . . . . . . . . . Allies | -11 -10 -10 -9 -9 -9 -8 -8 -7 -7 -7 -7 -6 -6 -6 -6 -6 -6 -5 -5 -4 -4 -------- Run | Yrd Mat Min Mat Min Exi Min Mat Fac Low Low Dat Pro Fac Ext Cet Arc Hub Fac DSF Fac Upp Total Allies 41 | . . . . 3 3 . . . . . . . . 21 5 . . . . 9 . Largest Group 9 | . . . . 3 3 3 . . . . . . . 9 9 7 4 . . 6 . Highest-Rated Group 721 | . . . . 40 24 24 . . . . . . . 395 721 605 384 . . 237 . Highest-Rated Ally 159 | . . . . 16 8 8 . . . . . . . 159 159 151 96 . . 42 . Initial Warlord ECA Mod 18 | . . . . . . . . . . . . . . . . . . . . 9 9 Total Orders . | . . . . . . . . . . . . . . . . . . . . . . Ally Attacks 260 | . . . . 16 . 2 . . . . . . . 42 68 42 57 . . 33 . Total Damage 8121 | . . . . 135 . 12 . . . . . . . 701 1851 1513 2269 . . 1640 . Kills 39 | . . . . 4 . . . . . . . . . 4 9 4 12 . . 6 . Allies Corrupted 2 | . . . . . . . . . . . . . . 2 . . . . . . . Allies Melted . | . . . . . . . . . . . . . . . . . . . . . . Intel | -11 -10 -10 -9 -9 -9 -8 -8 -7 -7 -7 -7 -6 -6 -6 -6 -6 -6 -5 -5 -4 -4 ------- Run | Yrd Mat Min Mat Min Exi Min Mat Fac Low Low Dat Pro Fac Ext Cet Arc Hub Fac DSF Fac Upp Active Infowar (turns) 6250 | 53 545 244 306 . . . . 1432 863 994 327 392 300 736 . . . . . 58 . Optics 58 | . . . . . . . . . . . . . . . . . . . . 58 . Sensors 5044 | . . . . . . . . 1432 863 994 327 392 300 736 . . . . . . . Seismic 1148 | 53 545 244 306 . . . . . . . . . . . . . . . . . . Decoding 1 | . . . . . . . . . . . . . 1 . . . . . . . . Robot Analysis Total 151 | . . . . . . . . . . . 151 . . . . . . . . . . Derelict Logs Recovered 7 | . . . . 1 . . . . 1 2 . 2 . . . . . . . . 1 Drone Launches . | . . . . . . . . . . . . . . . . . . . . . . Drone Recoveries . | . . . . . . . . . . . . . . . . . . . . . . Exploration | -11 -10 -10 -9 -9 -9 -8 -8 -7 -7 -7 -7 -6 -6 -6 -6 -6 -6 -5 -5 -4 -4 ------------- Run | Yrd Mat Min Mat Min Exi Min Mat Fac Low Low Dat Pro Fac Ext Cet Arc Hub Fac DSF Fac Upp Turns Passed 16340 | 112 545 244 1429 1146 1279 495 1860 1646 863 994 507 392 300 1628 570 772 292 30 255 884 97 Spaces Moved 7259 | 62 255 100 445 457 509 191 719 513 419 698 289 300 199 773 197 200 109 21 99 531 173 Core 213 | 20 . . . . . . . . . . 6 . . . . . . . . 14 173 Treads 3219 | 42 152 39 334 457 509 191 719 513 263 . . . . . . . . . . . . Legs 2581 | . . 61 111 . . . . . . . 169 300 199 773 197 200 109 21 99 342 . Wheels 1071 | . 103 . . . . . . . 156 698 114 . . . . . . . . . . Hover 175 | . . . . . . . . . . . . . . . . . . . . 175 . Flight . | . . . . . . . . . . . . . . . . . . . . . . Fastest Speed 48 | 50 105 120 120 240 240 240 155 243 130 130 100 120 120 120 120 190 120 120 120 48 50 Average Speed 174 | 124 147 166 240 240 240 240 192 246 200 130 129 120 120 147 172 190 180 120 127 99 50 Slowest Speed 550 | 160 240 240 260 240 240 240 245 410 243 130 550 120 120 190 190 190 190 120 190 120 50 Overloaded Moves . | . . . . . . . . . . . . . . . . . . . . . . Propulsion Burnouts . | . . . . . . . . . . . . . . . . . . . . . . Robots Hopped . | . . . . . . . . . . . . . . . . . . . . . . Potential Cave-ins . | . . . . . . . . . . . . . . . . . . . . . . Cave-ins Triggered . | . . . . . . . . . . . . . . . . . . . . . . Exploration Rate (%) 49 | 5 43 44 48 80 90 64 52 10 57 83 77 60 6 87 65 76 18 1 76 22 27 Regions Visited 21 Branch Regions 13 Pre-discovered Areas 34 | . . . . . 1 . 2 . 1 . 27 2 . . . . . . . . 1 Known Exits Taken 12 | . 1 . 1 . . . 1 1 1 1 1 1 1 . . . 1 1 . 1 . Unknown Exits Taken 8 | 1 . 1 . 1 1 1 . . . . . . . 1 1 1 . . . . . Scrap Searched 17 | . . 1 . 2 . 2 . . 4 5 . 3 . . . . . . . . . Spaces Dug 4 | . . . . . . . . . . . . . 1 . . . 1 . . 2 . Terrain Destroyed 412 | . . . 60 . . . 53 37 1 2 3 2 1 23 3 12 174 . 13 28 . Melee . | . . . . . . . . . . . . . . . . . . . . . . Projectile 54 | . . . . . . . . . 1 2 3 2 1 12 3 12 7 . 7 4 . AOE 358 | . . . 60 . . . 53 37 . . . . . 11 . . 167 . 6 24 . Terrain Rammed . | . . . . . . . . . . . . . . . . . . . . . . Walls Destroyed . | . . . . . . . . . . . . . . . . . . . . . . Machines Disabled . | . . . . . . . . . . . . . . . . . . . . . . Actions | -11 -10 -10 -9 -9 -9 -8 -8 -7 -7 -7 -7 -6 -6 -6 -6 -6 -6 -5 -5 -4 -4 --------- Run | Yrd Mat Min Mat Min Exi Min Mat Fac Low Low Dat Pro Fac Ext Cet Arc Hub Fac DSF Fac Upp Total 9884 | 86 340 138 660 485 554 210 987 771 431 746 440 328 252 1149 403 522 182 26 171 819 184 Wait 1129 | . 28 4 11 11 4 6 80 139 . 8 19 8 31 132 151 256 40 1 1 193 6 Move 7238 | 61 254 99 444 456 508 190 718 512 418 697 288 299 198 772 196 199 108 20 98 530 173 Hop . | . . . . . . . . . . . . . . . . . . . . . . Pick Up 246 | 13 5 4 50 3 9 1 21 15 3 9 43 2 3 14 12 6 3 . 16 14 . Fast Attach 52 | 1 . . 2 . 1 1 7 8 1 2 4 4 . 4 2 4 . . 3 7 1 Attach 123 | 6 4 4 15 . 1 . 11 4 1 1 21 . 3 13 6 2 4 5 6 14 2 Detach 18 | . . . . . . . 1 1 . . 3 . . . 4 . 4 . . 3 2 Swap 76 | . 4 1 10 . 2 . 11 9 . . . . 3 16 4 5 . . 7 4 . Drop 221 | . 3 1 33 3 13 2 26 21 3 10 43 2 1 7 12 10 2 . 14 15 . Fire 683 | 5 42 25 95 11 9 10 112 62 5 19 18 13 13 113 16 40 11 . 26 38 . Melee 1 | . . . . . . . . . . . 1 . . . . . . . . . . Ram 1 | . . . . . . . . . . . . . . . . . . . . 1 . Kick . | . . . . . . . . . . . . . . . . . . . . . . Crush 1 | . . . . 1 . . . . . . . . . . . . . . . . . Escape Stasis 15 | . . . . . . . . . . . . . . 5 . . 10 . . . . Rewire 80 | . . . . . 7 . . . . . . . . 73 . . . . . . . Trap . | . . . . . . . . . . . . . . . . . . . . . . Miscellaneous . | . . . . . . . . . . . . . . . . . . . . . . Route ------- -11/Scrapyard -10/Materials (discovered 2 exits: *Mat / *Min) -10/Mines -9/Materials (discovered 2 exits: *Mat / *Min) -9/Mines (discovered 3 exits: *Mat x2 / *Exi) -9/Exiles -8/Mines -8/Materials (discovered 3 exits: *Fac x3) -7/Factory (discovered 4 exits: Fac x2 / *Low x2) -7/Lower Caves -7/Lower Caves (discovered 2 exits: *Fac / *Dat) -7/Data Miner -6/Proximity Caves -6/Factory (discovered 2 exits: Fac / *Ext) -6/Extension (discovered 3 exits: *Fac x2 / *Cet) -6/Cetus (discovered 2 exits: *Fac / *Arc) -6/Archives (discovered 3 exits: *Fac / *Hub x2) -6/Hub_04(d) (discovered 4 exits: *Fac x4) -5/Factory -5/DSF -4/Factory (discovered 2 exits: *Upp x2) -4/Upper Caves History --------- Turn | Location | Event 8 | -11/Scrapyard | Discovered new exit (range 15) 113 | -11/Scrapyard | Entered Materials 292 | -10/Materials | Identified exit to Mines 304 | -10/Materials | Build established: Mutant 310 | -10/Materials | Discovered new exit (range 16) 557 | -10/Materials | Core integrity fell below 50% 658 | -10/Materials | Entered Mines 714 | -10/Mines | Assembled infested the area 719 | -10/Mines | Assisted by a Guerilla fighting off Assembled 798 | -10/Mines | Core integrity fell below 20% 847 | -10/Mines | Destroyed 7 combat bots 850 | -10/Mines | Found a Scrap Suit stashed away for nefarious purposes 853 | -10/Mines | Found Scrap Suit 888 | -10/Mines | Discovered new exit (range 10) 902 | -10/Mines | Entered Materials 902 | -9/Materials | Evolved 2 slots: Utility x2 1198 | -9/Materials | Core integrity fell below 50% 1226 | -9/Materials | Lost 5 parts (1p1u3w) 1428 | -9/Materials | Identified exit to Mines 1713 | -9/Materials | Discovered new exit (range 4) 1726 | -9/Materials | Build established: Hacker-Mutant 1771 | -9/Materials | Core integrity fell below 20% 2331 | -9/Materials | Entered Mines 2465 | -9/Mines | Discovered new exit (range 8) 2501 | -9/Mines | Assisted by bots powering up and referring to "LRC-V3" 2819 | -9/Mines | Learned location of 1 exit from Materials 2918 | -9/Mines | A weapon hastily lodged in a ceiling crevice suddenly fell to the ground 3049 | -9/Mines | Discovered new exit (range 6) 3391 | -9/Mines | Lost 3 allies 3465 | -9/Mines | Deemed a non-threat by the Exiles lab entrance 3465 | -9/Mines | Discovered new exit (range 5) 3477 | -9/Mines | Entered Exiles 3477 | -9/Exiles | Found Exiles lab destroyed 4098 | -9/Exiles | Build established: Scavenger-Mutant 4150 | -9/Exiles | Learned location of Zion (-6) 4277 | -9/Exiles | Discovered new exit (range 10) 4519 | -9/Exiles | Opened EX-Vault 4532 | -9/Exiles | Found Prototype Ballistic Gun 4756 | -9/Exiles | Entered Mines 4756 | -8/Mines | Accompanied by 3 allies 4867 | -8/Mines | Lost 3 allies 5227 | -8/Mines | Discovered new exit (range 12) 5251 | -8/Mines | Entered Materials 5251 | -8/Materials | Evolved 2 slots: Propulsion x1, Utility x1 5252 | -8/Materials | Identified exit to Factory 5970 | -8/Materials | Build established: Mutant 6520 | -8/Materials | Build established: Scavenger-Mutant 6615 | -8/Materials | Learned location of 2 exits from Factory 6687 | -8/Materials | Learned 2 Lower Caves zone layouts 6803 | -8/Materials | Learned 2 Storage zone layouts 6847 | -8/Materials | Learned location of Lower Caves (-7) 6904 | -8/Materials | Build established: Mutant 6996 | -8/Materials | Learned location of 1 exit from Extension 7056 | -8/Materials | Learned location of 1 exit from Extension 7111 | -8/Materials | Entered Factory 7111 | -7/Factory | Evolved 2 slots: Weapon x2 7112 | -7/Factory | Identified exit to Lower Caves 7113 | -7/Factory | Identified exit to Factory 7777 | -7/Factory | Build established: Tank 8206 | -7/Factory | Found Prototype Launcher 8206 | -7/Factory | Identified Rocket Array 8497 | -7/Factory | Build established: Mutant 8757 | -7/Factory | Entered Lower Caves 8929 | -7/Lower Caves | Build established: Tank 9592 | -7/Lower Caves | Discovered new exit (range 4) 9594 | -7/Lower Caves | Identified exit to Lower Caves 9620 | -7/Lower Caves | Entered another Lower Caves area 9620 | -7/Lower Caves | Discovered exit to Factory (range 13) 9955 | -7/Lower Caves | Encountered a Warlord checkpoint 10013 | -7/Lower Caves | Learned location of 1 exit from Factory 10091 | -7/Lower Caves | Discovered new exit (range 7) 10099 | -7/Lower Caves | Identified exit to Data Miner 10345 | -7/Lower Caves | Learned Factory stockpile data 10614 | -7/Lower Caves | Entered Data Miner 10617 | -7/Data Miner | Discovered new exit (range 6) 10641 | -7/Data Miner | Met Data Miner 10681 | -7/Data Miner | Learned location of Section 7 (-2) 10681 | -7/Data Miner | Acquired the access code to Warlord's prototype stash 10700 | -7/Data Miner | Received God Mode back door access code from Data Miner 10721 | -7/Data Miner | Identified XL Autogun Array 10765 | -7/Data Miner | Interfaced with the Data Conduit 11007 | -7/Data Miner | Found Exp. Thermal Shield 11046 | -7/Data Miner | Found Exp. Thermal Shield 11065 | -7/Data Miner | Found Exp. Thermal Shield 11120 | -7/Data Miner | Identified exit to Proximity Caves 11121 | -7/Data Miner | Entered Proximity Caves 11315 | -6/Proximity Caves | Build established: Scavenger-Tank 11505 | -6/Proximity Caves | Discovered exit to Factory (range 7) 11513 | -6/Proximity Caves | Entered Factory 11513 | -6/Factory | Evolved 2 slots: Utility x2 11514 | -6/Factory | Identified exit to Factory 11516 | -6/Factory | Loaded intel: 277 machine locations 11810 | -6/Factory | Discovered new exit (range 5) 11812 | -6/Factory | Identified exit to Extension 11813 | -6/Factory | Entered Extension 11815 | -6/Extension | Loaded intel: 30 machine locations 12053 | -6/Extension | Lost 3 allies 12148 | -6/Extension | Rescued a captive Derelict 12149 | -6/Extension | Rescued a captive Derelict 12343 | -6/Extension | Disrupted transfer network 12457 | -6/Extension | Spotted B-75 Beast 12482 | -6/Extension | Destroyed B-75 Beast 12503 | -6/Extension | Spotted B-75 Beast 12537 | -6/Extension | Destroyed B-75 Beast 12551 | -6/Extension | Lost 3 parts (1p2u) 12614 | -6/Extension | Destroyed 7 combat bots 12614 | -6/Extension | Lost 3 parts (1u2w) 12781 | -6/Extension | Rescued a captive Derelict 12898 | -6/Extension | Rescued a captive Derelict 12907 | -6/Extension | Rescued a captive Derelict 13009 | -6/Extension | Lost 3 allies 13028 | -6/Extension | Destroyed 7 combat bots 13198 | -6/Extension | Lost 3 allies 13241 | -6/Extension | Lost 4 parts (1p3u) 13313 | -6/Extension | Rescued A7 13382 | -6/Extension | Discovered new exit (range 6) 13441 | -6/Extension | Entered Cetus 13441 | -6/Cetus | Accompanied by 9 allies (A7) 13442 | -6/Cetus | Loaded intel: 24 machine locations 13446 | -6/Cetus | Acquired a Cetus Manufacturing Module code from A7 13482 | -6/Cetus | Spotted Cetus Guard 13483 | -6/Cetus | Spotted Cetus Guard 13484 | -6/Cetus | Spotted Cetus Guard 13486 | -6/Cetus | Allies destroyed Cetus Guard 13488 | -6/Cetus | Spotted Cetus Guard 13516 | -6/Cetus | Allies destroyed Cetus Guard 13518 | -6/Cetus | Allies destroyed Cetus Guard 13524 | -6/Cetus | Allies destroyed Cetus Guard 13550 | -6/Cetus | Lost 5 allies 13600 | -6/Cetus | Started Cetus Manufacturing Module 13609 | -6/Cetus | Escorted A7 to Cetus Mainframe 13625 | -6/Cetus | Manufactured an Enhanced Grunt 13631 | -6/Cetus | Discovered new exit (range 16) 13650 | -6/Cetus | Manufactured an Enhanced Grunt 13675 | -6/Cetus | Manufactured an Enhanced Grunt 13700 | -6/Cetus | Manufactured an Enhanced Grunt 13725 | -6/Cetus | Manufactured an Enhanced Grunt 13761 | -6/Cetus | Spotted Cetus Guard 13761 | -6/Cetus | Spotted Cetus Guard 13764 | -6/Cetus | Spotted Cetus Guard 13764 | -6/Cetus | Spotted Cetus Guard 13780 | -6/Cetus | Destroyed Cetus Guard 13784 | -6/Cetus | Allies destroyed Cetus Guard 13785 | -6/Cetus | Allies destroyed Cetus Guard 13786 | -6/Cetus | Allies destroyed Cetus Guard 13792 | -6/Cetus | Discovered exit to Factory (range 16) 13804 | -6/Cetus | Met Revision 17 14011 | -6/Cetus | Entered Archives 14011 | -6/Archives | Accompanied by 7 allies (A7) 14012 | -6/Archives | Loaded intel: 8 machine locations 14016 | -6/Archives | Received a hacking code to weaken MAIN.C 14076 | -6/Archives | Unable to access archive contents 14097 | -6/Archives | Unable to access archive contents 14104 | -6/Archives | Discovered new exit (range 16) 14120 | -6/Archives | Discovered exit to Factory (range 15) 14249 | -6/Archives | System corruption reached 10% 14285 | -6/Archives | Discovered new exit (range 15) 14783 | -6/Archives | Entered Hub_04(d) 14783 | -6/Hub_04(d) | Accompanied by 4 allies 14784 | -6/Hub_04(d) | Loaded intel: 92 machine locations 14878 | -6/Hub_04(d) | Garrison activated, responded to threat 15049 | -6/Hub_04(d) | Network Hub disabled 15070 | -6/Hub_04(d) | Spotted Lightning 15071 | -6/Hub_04(d) | Spotted Lightning 15075 | -6/Hub_04(d) | Entered Factory 15075 | -5/Factory | Evolved 2 slots: Propulsion x1, Utility x1 15076 | -5/Factory | Loaded intel: 283 machine locations 15090 | -5/Factory | Lost 4 allies 15103 | -5/Factory | Lost 3 parts (1p1u1w) 15105 | -5/Factory | Identified exit to DSF 15105 | -5/Factory | Entered DSF 15106 | -5/DSF | Loaded intel: 3 machine locations 15131 | -5/DSF | Additional patrols routed to DSF 15256 | -5/DSF | Sterilization system engaged 15276 | -5/DSF | Ambient heat levels rising (+10) 15291 | -5/DSF | Ambient heat levels rising (+10) 15306 | -5/DSF | Ambient heat levels rising (+10) 15321 | -5/DSF | Ambient heat levels rising (+10) 15330 | -5/DSF | Discovered new exit (range 14) 15336 | -5/DSF | Ambient heat levels rising (+10) 15351 | -5/DSF | Ambient heat levels rising (+10) 15360 | -5/DSF | Entered Factory 15360 | -4/Factory | Evolved 2 slots: Power x1, Propulsion x1 15361 | -4/Factory | Loaded intel: 276 machine locations 15752 | -4/Factory | Fabricated C-35 Carver (x3) 15837 | -4/Factory | Fabricated C-35 Carver (x3) 15922 | -4/Factory | Fabricated C-35 Carver? 15971 | -4/Factory | Lost 9 allies 16015 | -4/Factory | Lost 8 parts (2p2n1u3w) 16089 | -4/Factory | Core integrity fell below 50% 16098 | -4/Factory | Fabricated Impulse Thruster? 16111 | -4/Factory | Identified exit to Upper Caves 16213 | -4/Factory | Lost 3 parts (2n1u) 16225 | -4/Factory | Spotted B-86 Titan 16238 | -4/Factory | Core integrity fell below 20% 16238 | -4/Factory | Released all parts (7) 16244 | -4/Factory | Entered Upper Caves 16252 | -4/Upper Caves | Met a Warlord Commander 16254 | -4/Upper Caves | Warlord Commander delivered Encrypted Comm Array 16256 | -4/Upper Caves | Found Encrypted Comm Array 16265 | -4/Upper Caves | Lost 3 parts (3n) 16271 | -4/Upper Caves | Learned Research terminal intel 16276 | -4/Upper Caves | Entered a destroyed Warlord outpost 16338 | -4/Upper Caves | System corruption reached 10% 16341 | -4/Upper Caves | Destroyed by P-70 Sage with Tesla Rifle Last Messages --------------- World map confirmed: -5/Warlord. 16254_ N0-8ST(g): "Take this and I'm confident we can do great things together." 16255_ N0-8ST(g): "Keep it up and the more chaos you cause inside garrisons, the more forces we can redirect for attacks on primary facilities." 16256_ N0-8ST(g): "To be clear, the most effective way to help us is by destroying RIF Installers and Garrison Relays, and generally compromising garrison interiors. Triggering DSF sterilization is also a great help." 16256_ Acquired Encrypted Comm Array. 16257_ N0-8ST(g): "WARLORD FOREVER!" 16257_ N0-8ST(g) slips back into the shadows. 16271_ Acquired derelict log, extracted data. Data stored: Research terminal intel. 16279_ Connecting with WAR.Sys... >>Record "Event 261966056826" SOMETHING is tearing through the walls. 16282_ System corrupted: Heat flow error (+271). 16331_ Z%T02Q6KJI1OAF >SA:074F Map ----- +----------------------------------------------------+ | ?????????????????????????????????????????????????? | | ?????????????????????????????????????????????????? | | ?????????????????????????????????????????????????? | | ?????????????????????????????????????????????????? | | ?????????????????????????????????????????????????? | | ???????????????????????????????????###???????????? | | ???????????????????????????????????# ???????????? | | ???????????????????????????????????# #???????????? | | ??????????????????????????????#"#??# #???????????? | | ?????????????????????????????## #?## ##??????????? | | ?????????????????????????????# #### ####### # | | ?????????????????????????????# ## | | ?????????????????????????????# ## #? | | ?????????????????????????????# ### #### # | | ????????????????????????????## ##?# #????????? | | ????????????????????????????# ##??# #????????? | | ????????????????????????????# # #???# #????????? | | ????????????????????????????# ####???# #????????? | | ????????????????????????????# #??????# ###??????? | | ????????????????????????????# #?????### ##?##### | | ????????????????????????##### #?????# ## # | | ????????????????????????# p #?##??## # # | | ????????????????????????# ######## #### ## # # | | ????????????????????????# #???### ### ## | | ??????????????????????### ##### #?## ### | | ??????????????????????# @ #??#### | | ????????????????? #????## # | | ???????????? #????## | | ??????????? p #?????### | | ??????????? ###p ## #####???????# | | ????????????????# #####???????????? | | ????????????????# ### #???????????????? | | ???????????????# ##?# #???????????????? | | ??????????????# #???# #???????????????? | | ??????????????# ### ????######???????????????? | | ??????????????# ??# ?????????????????????????? | | ??????????????## ???# ?????????????????????????? | | ????????????????# ???# ?????????????????????????? | | ?????????????????????? ?????????????????????????? | | ?????????????????????? ??????????????????????????? | | ?????????????????????????????????????????????????? | | ?????????????????????????????????????????????????? | | ?????????????????????????????????????????????????? | | ?????????????????????????????????????????????????? | | ?????????????????????????????????????????????????? | | ?????????????????????????????????????????????????? | | ?????????????????????????????????????????????????? | | ?????????????????????????????????????????????????? | | ?????????????????????????????????????????????????? | | ?????????????????????????????????????????????????? | +----------------------------------------------------+ Best States ------------- Heat Dissipation 64 Coolant Potential 100 Energy Generation 35 Energy Capacity 1100 Matter Stores 300 Matter Capacity 300 Sight Range 23 Robot Scan Range 15 Terrain Scan Density 10 Armor Coverage 675 Resistance: KI 20 Resistance: TH 30 Resistance: EM 15 Evasion (%) 55 Targeting Accuracy 8 Target Analysis 5 Recoil Reduction 3 Particle Charging 25 Force Boost 20 Salvage Targeting 4 Offensive Hacking 30 Defensive Hacking 10 Authchip Count 5 Item Schematics ----------------- Hvy. Flail | -8/Materials | Extracted Combat Drone Bay | -7/Data Miner | Free Lgt. Regenerative Plating | -7/Data Miner | Free Cld. Cesium-ion Thruster | -7/Data Miner | Free Thermal Defense Suite | -7/Data Miner | Free Com. Ion Cannon | -7/Data Miner | Free Arm. Medium Treads | -7/Data Miner | Free Adv. Cooling System | -7/Data Miner | Free Mass Driver | -7/Data Miner | Free Imp. Cloaking Device | -6/Extension | Hacked Robot Schematics ------------------ Y-54 Guardian | -7/Data Miner | Free B-48 Gladiator | -7/Data Miner | Free W-25 Informer | -7/Data Miner | Free C-35 Carver | -7/Data Miner | Free A-15 Conveyor | -7/Data Miner | Free R-10 Processor | -7/Data Miner | Free G-50 Soldier | -7/Data Miner | Free Fabricated ------------ C-35 Carver | x3 | -4/Factory | Authchip C-35 Carver | x3 | -4/Factory | Authchip C-35 Carver | x3 | -4/Factory | Authchip Impulse Thruster | x2 | -4/Factory | Preloaded Repaired ---------- Nothing Alien Tech Used ----------------- None Achievements -------------- None Challenges ------------ None Game ------ Seed TowerTimingJets Manual? 0 Play Time 01:57:14 Cumulative 327.1 hours Start 2025.09.25 @ 21:18:29 End 2025.09.25 @ 23:28:21 Sessions 1 Manual Loads 0 Difficulty Rogue Special Mode None Game No. 441 Rogue 441 Adventurer 0 Explorer 0 Win Type - Total 11 Types 6/0/1/2/1/0/1/0/0/0 Lore% 86 Gallery% 82 Achievement% 67 Wizard Run 0 Options --------- Layout 0 ASCII 0 Keyboard 0 Movement Mouse Keybinds 0 Fullscreen 1 Font 24/Tamsyn Map View 76x50 Zoom Use 0% Tactical HUD 1 Map Filters NONE Filters NONE Steam 1 RUN: 972a6b44-6db0-4c93-986d-2a4ff8852898